[Event "FIDE Women World Blitz 2021"]
[Site "Warsaw"]
[Date "2021.12.29"]
[Round "4.9"]
[White "Rudzinska, Michalina"]
[Black "Kolaric, Spela"]
[Result "0-1"]
[ECO "C47"]
[WhiteElo "1832"]
[BlackElo "2178"]
[Annotator "NA"]
[PlyCount "148"]
[EventDate "2021.12.29"]
[EventType "swiss"]
[EventCountry "POL"]
[Tiebreak "Cut1 Buchholz"]
[SourceTitle "playchess.com"]
[Source "ChessBase"]
[SourceQuality "1"]
[TimeControl "180+2"]

1. e4 {[%emt 0:00:01]} e5 {[%emt 0:00:00]} 2. Nf3 {[%emt 0:00:01]} Nc6 {
[%emt 0:00:01]} 3. Nc3 {[%emt 0:00:02]} Nf6 {[%emt 0:00:02]} 4. a4 {[%emt 0:00:
01]} d5 {[%emt 0:00:01]} 5. exd5 {[%emt 0:00:03]} Nxd5 {[%emt 0:00:02]} 6. Bb5
{[%emt 0:00:03]} Nxc3 {[%emt 0:00:03]} 7. bxc3 {[%emt 0:00:02]} Bd6 {[%emt 0:
00:02]} 8. O-O {[%emt 0:00:02]} O-O {[%emt 0:00:03]} 9. d4 {[%emt 0:00:06]}
exd4 {[%emt 0:00:13]} 10. cxd4 {[%emt 0:00:03]} Bg4 {[%emt 0:00:02]} 11. c3 {
[%emt 0:00:16]} Qf6 {[%emt 0:00:14]} 12. Be2 {[%emt 0:00:06]} h6 {[%emt 0:00:
05]} 13. h3 {[%emt 0:00:05]} Bf5 {[%emt 0:00:03]} 14. Nh2 {[%emt 0:00:11]} Rad8
{[%emt 0:00:20]} 15. Ng4 {[%emt 0:00:19]} Qg6 {[%emt 0:00:06]} 16. Kh1 {
[%emt 0:00:04]} Rfe8 {[%emt 0:00:11]} 17. Ne3 {[%emt 0:00:03]} Be4 {[%emt 0:00:
13]} 18. Bf3 {[%emt 0:00:03]} Bc2 {[%emt 0:00:08]} 19. Qd2 {[%emt 0:00:08]} Be4
{[%emt 0:00:08]} 20. Qd1 {[%emt 0:00:13]} Ne7 {[%emt 0:00:10]} 21. Bxe4 {
[%emt 0:00:07]} Qxe4 {[%emt 0:00:01]} 22. Qg4 {[%emt 0:00:07]} Qd3 {[%emt 0:00:
11]} 23. Bb2 {[%emt 0:00:14]} f5 {[%emt 0:00:07]} 24. Qd1 {[%emt 0:00:09]} Qxd1
{[%emt 0:00:07]} 25. Rfxd1 {[%emt 0:00:03]} f4 {[%emt 0:00:01]} 26. Nc4 {
[%emt 0:00:04]} Nf5 {[%emt 0:00:03]} 27. Bc1 {[%emt 0:00:06]} g5 {[%emt 0:00:
01]} 28. Rb1 {[%emt 0:00:05]} b6 {[%emt 0:00:01]} 29. Bd2 {[%emt 0:00:14]} Re2
{[%emt 0:00:01]} 30. Re1 {[%emt 0:00:01]} Rde8 {[%emt 0:00:01]} 31. Kg1 {
[%emt 0:00:04]} Kg7 {[%emt 0:00:10]} 32. Kf1 {[%emt 0:00:04]} Rxe1+ {[%emt 0:
00:05]} 33. Bxe1 {[%emt 0:00:11]} Kf6 {[%emt 0:00:01]} 34. a5 {[%emt 0:00:02]}
h5 {[%emt 0:00:09]} 35. axb6 {[%emt 0:00:04]} axb6 36. Ra1 {[%emt 0:00:02]} Ke6
{[%emt 0:00:09]} 37. Bd2 {[%emt 0:00:07]} Kd5 {[%emt 0:00:01]} 38. Nb2 {
[%emt 0:00:02]} g4 {[%emt 0:00:09]} 39. Rd1 {[%emt 0:00:11]} g3 {[%emt 0:00:12]
} 40. Bc1 {[%emt 0:00:09]} gxf2 {[%emt 0:00:04]} 41. Kxf2 {[%emt 0:00:01]} Ng3
{[%emt 0:00:08]} 42. c4+ {[%emt 0:00:01]} Kc6 {[%emt 0:00:02]} 43. d5+ {
[%emt 0:00:06]} Kd7 {[%emt 0:00:01]} 44. Kf3 {[%emt 0:00:08]} Ne2 {[%emt 0:00:
07]} 45. Bd2 {[%emt 0:00:12]} Nd4+ {[%emt 0:00:03]} 46. Kf2 {[%emt 0:00:01]}
Bc5 {[%emt 0:00:05]} 47. Kf1 {[%emt 0:00:02]} f3 {[%emt 0:00:01]} 48. Nd3 {
[%emt 0:00:03]} fxg2+ {[%emt 0:00:02]} 49. Kxg2 {[%emt 0:00:00]} Bd6 {[%emt 0:
00:05]} 50. Rf1 {[%emt 0:00:03]} Re2+ {[%emt 0:00:00]} 51. Rf2 {[%emt 0:00:02]}
Rxf2+ {[%emt 0:00:07]} 52. Kxf2 {[%emt 0:00:02]} c6 {[%emt 0:00:04]} 53. dxc6+
{[%emt 0:00:02]} Kxc6 {[%emt 0:00:03]} 54. Ke3 {[%emt 0:00:03]} Ne6 {[%emt 0:
00:03]} 55. Ke4 {[%emt 0:00:04]} Bc7 {[%emt 0:00:05]} 56. Kf5 {[%emt 0:00:02]}
Nd4+ {[%emt 0:00:01]} 57. Kg6 {[%emt 0:00:01]} Nf3 {[%emt 0:00:01]} 58. Be3 {
[%emt 0:00:02]} h4 {[%emt 0:00:02]} 59. Nf4 {[%emt 0:00:01]} Ne5+ {[%emt 0:00:
03]} 60. Kf5 {[%emt 0:00:02]} Nxc4 {[%emt 0:00:01]} 61. Bc1 {[%emt 0:00:00]} b5
{[%emt 0:00:04]} 62. Kg4 {[%emt 0:00:02]} Bd8 {[%emt 0:00:02]} 63. Ne6 {
[%emt 0:00:03]} Be7 {[%emt 0:00:06]} 64. Nd4+ {[%emt 0:00:03]} Kc5 {[%emt 0:00:
03]} 65. Nf5 {[%emt 0:00:01]} Bd8 {[%emt 0:00:04]} 66. Nxh4 {[%emt 0:00:02]} b4
{[%emt 0:00:00]} 67. Nf3 {[%emt 0:00:05]} b3 {[%emt 0:00:01]} 68. h4 {[%emt 0:
00:02]} Kd5 {[%emt 0:00:03]} 69. h5 {[%emt 0:00:02]} Bf6 {[%emt 0:00:04]} 70.
h6 {[%emt 0:00:01]} Ne5+ {[%emt 0:00:03]} 71. Nxe5 {[%emt 0:00:02]} Kxe5 {
[%emt 0:00:01]} 72. Bb2+ {[%emt 0:00:01]} Ke6 {[%emt 0:00:00]} 73. Bxf6 {
[%emt 0:00:01]} Kxf6 {[%emt 0:00:01]} 74. h7 {[%emt 0:00:02]} Kg7 {[%emt 0:00:
00]} 0-1

[Event "FIDE Women World Blitz 2021"]
[Site "Warsaw"]
[Date "2021.12.29"]
[Round "4.10"]
[White "Koneru, Humpy"]
[Black "Socko, Monika"]
[Result "1-0"]
[ECO "A40"]
[WhiteElo "2586"]
[BlackElo "2393"]
[Annotator "ChessBase"]
[PlyCount "113"]
[EventDate "2021.12.29"]
[EventType "swiss"]
[EventCountry "POL"]
[Tiebreak "Cut1 Buchholz"]
[SourceTitle "playchess.com"]
[Source "ChessBase"]
[SourceQuality "1"]
[TimeControl "180+2"]

1. d4 {[%emt 0:00:01]} e6 {[%emt 0:00:01]} 2. c4 {[%emt 0:00:02]} b6 {[%emt 0:
00:01]} 3. a3 {[%emt 0:00:08]} Bb7 {[%emt 0:00:04]} 4. Nc3 {[%emt 0:00:02]} f5
{[%emt 0:00:05]} 5. Nf3 {[%emt 0:00:05]} Nf6 {[%emt 0:00:02]} 6. g3 {[%emt 0:
00:04]} Be7 {[%emt 0:00:06]} 7. Bg2 {[%emt 0:00:01]} O-O {[%emt 0:00:03]} 8.
O-O {[%emt 0:00:04]} a5 {[%emt 0:00:09]} 9. d5 {[%emt 0:00:11]} Na6 {[%emt 0:
00:03]} 10. Nd4 {[%emt 0:00:06]} Nc5 {[%emt 0:00:20]} 11. Bf4 {[%emt 0:00:13]}
exd5 {[%emt 0:00:48]} 12. Nxf5 {[%emt 0:00:25]} dxc4 {[%emt 0:00:19]} 13. Bxb7
{[%emt 0:00:15]} Nxb7 {[%emt 0:00:02]} 14. Nd5 {[%emt 0:00:28]} Bd6 {[%emt 0:
00:31]} 15. Nxd6 {[%emt 0:00:30]} Nxd6 {[%emt 0:00:02]} 16. Nxc7 {[%emt 0:00:
08]} Nde4 {[%emt 0:00:19]} 17. Nxa8 {[%emt 0:00:04]} Qxa8 {[%emt 0:00:01]} 18.
f3 {[%emt 0:00:06]} Nc5 {[%emt 0:00:01]} 19. Bd6 {[%emt 0:00:05]} Rc8 {[%emt 0:
00:01]} 20. Bxc5 {[%emt 0:00:14]} Rxc5 {[%emt 0:00:01]} 21. Qd4 {[%emt 0:00:03]
} Qc6 {[%emt 0:00:03]} 22. Rad1 {[%emt 0:00:04]} b5 {[%emt 0:00:07]} 23. e4 {
[%emt 0:00:01]} Qc7 {[%emt 0:00:10]} 24. Qd6 {[%emt 0:00:05]} Qxd6 {[%emt 0:00:
15]} 25. Rxd6 {[%emt 0:00:02]} b4 {[%emt 0:00:01]} 26. axb4 {[%emt 0:00:03]}
axb4 {[%emt 0:00:01]} 27. Rc1 {[%emt 0:00:08]} Kf7 {[%emt 0:00:07]} 28. Rd4 {
[%emt 0:00:04]} c3 {[%emt 0:00:02]} 29. bxc3 {[%emt 0:00:03]} bxc3 {[%emt 0:00:
04]} 30. Rd3 {[%emt 0:00:03]} d5 {[%emt 0:00:01]} 31. e5 {[%emt 0:00:06]} Nd7 {
[%emt 0:00:02]} 32. Rcxc3 {[%emt 0:00:06]} Rxc3 {[%emt 0:00:04]} 33. Rxc3 {
[%emt 0:00:01]} Nxe5 {[%emt 0:00:01]} 34. Kf2 {[%emt 0:00:01]} Ke6 {[%emt 0:00:
01]} 35. Ra3 {[%emt 0:00:02]} g6 {[%emt 0:00:02]} 36. Ra6+ {[%emt 0:00:01]} Kf5
{[%emt 0:00:02]} 37. Ke3 {[%emt 0:00:03]} d4+ {[%emt 0:00:02]} 38. Kf2 {
[%emt 0:00:03]} h5 {[%emt 0:00:01]} 39. Rd6 {[%emt 0:00:02]} d3 {[%emt 0:00:02]
} 40. Rd4 {[%emt 0:00:02]} g5 {[%emt 0:00:02]} 41. h3 {[%emt 0:00:03]} Kf6 {
[%emt 0:00:01]} 42. Ke3 {[%emt 0:00:02]} Kf5 {[%emt 0:00:01]} 43. Rxd3 {
[%emt 0:00:03]} g4 {[%emt 0:00:07]} 44. hxg4+ {[%emt 0:00:03]} hxg4 {[%emt 0:
00:01]} 45. f4 {[%emt 0:00:02]} Nf7 {[%emt 0:00:03]} 46. Rd5+ {[%emt 0:00:01]}
Kf6 {[%emt 0:00:01]} 47. Ra5 {[%emt 0:00:01]} Nd8 {[%emt 0:00:04]} 48. Ra6+ {
[%emt 0:00:01]} Kf5 {[%emt 0:00:01]} 49. Ra5+ {[%emt 0:00:01]} Kf6 {[%emt 0:00:
00]} 50. Rg5 {[%emt 0:00:01]} Nc6 {[%emt 0:00:03]} 51. Rxg4 {[%emt 0:00:01]}
Ne7 {[%emt 0:00:01]} 52. Rg5 {[%emt 0:00:01]} Kf7 {[%emt 0:00:01]} 53. Kf3 {
[%emt 0:00:02]} Kf6 {[%emt 0:00:01]} 54. g4 {[%emt 0:00:01]} Kf7 {[%emt 0:00:
01]} 55. Ra5 {[%emt 0:00:01]} Kf6 {[%emt 0:00:00]} 56. Ra6+ {[%emt 0:00:01]}
Kf7 {[%emt 0:00:03]} 57. Ra7 {[%emt 0:00:00]} 1-0

[Event "FIDE Women World Blitz 2021"]
[Site "Warsaw"]
[Date "2021.12.29"]
[Round "4.10"]
[White "Beydullayeva, Govhar"]
[Black "Kubicka, Anna"]
[Result "1/2-1/2"]
[ECO "E04"]
[WhiteElo "2278"]
[BlackElo "2273"]
[Annotator "NA"]
[PlyCount "81"]
[EventDate "2021.12.29"]
[EventType "swiss"]
[EventCountry "POL"]
[Tiebreak "Cut1 Buchholz"]
[SourceTitle "playchess.com"]
[Source "ChessBase"]
[SourceQuality "1"]
[TimeControl "180+2"]

1. Nf3 {[%emt 0:00:01]} d5 {[%emt 0:00:01]} 2. g3 {[%emt 0:00:00]} c5 {[%emt 0:
00:02]} 3. Bg2 {[%emt 0:00:01]} Nc6 {[%emt 0:00:01]} 4. d4 {[%emt 0:00:01]} e6
{[%emt 0:00:01]} 5. O-O {[%emt 0:00:01]} Nf6 {[%emt 0:00:02]} 6. c4 {[%emt 0:
00:00]} dxc4 {[%emt 0:00:03]} 7. dxc5 {[%emt 0:00:01]} Qxd1 {[%emt 0:00:03]} 8.
Rxd1 {[%emt 0:00:01]} Bxc5 {[%emt 0:00:03]} 9. Nbd2 {[%emt 0:00:01]} c3 {
[%emt 0:00:04]} 10. bxc3 {[%emt 0:00:01]} O-O {[%emt 0:00:02]} 11. Nb3 {
[%emt 0:00:03]} Bb6 {[%emt 0:00:05]} 12. Nfd4 {[%emt 0:00:21]} Bd7 {[%emt 0:00:
14]} 13. Nxc6 {[%emt 0:00:42]} Bxc6 {[%emt 0:00:02]} 14. Bxc6 {[%emt 0:00:02]}
bxc6 {[%emt 0:00:01]} 15. Ba3 {[%emt 0:00:19]} Rfd8 {[%emt 0:00:06]} 16. e3 {
[%emt 0:00:38]} Ne4 {[%emt 0:00:17]} 17. Bb2 {[%emt 0:00:14]} e5 {[%emt 0:00:
43]} 18. c4 {[%emt 0:00:20]} f6 {[%emt 0:00:02]} 19. Kf1 {[%emt 0:00:02]} Kf7 {
[%emt 0:00:05]} 20. Ke2 {[%emt 0:00:01]} Ke6 {[%emt 0:00:19]} 21. f3 {[%emt 0:
00:30]} Nc5 {[%emt 0:00:02]} 22. Rac1 {[%emt 0:00:11]} Na4 {[%emt 0:00:27]} 23.
Ba3 {[%emt 0:00:08]} Rxd1 {[%emt 0:00:03]} 24. Kxd1 {[%emt 0:00:00]} Rd8+ {
[%emt 0:00:01]} 25. Ke2 {[%emt 0:00:02]} c5 {[%emt 0:00:40]} 26. Rc2 {[%emt 0:
00:01]} Rd7 {[%emt 0:00:04]} 27. Bc1 {[%emt 0:00:07]} f5 {[%emt 0:00:05]} 28.
Bd2 {[%emt 0:00:03]} g6 {[%emt 0:00:10]} 29. Nc1 {[%emt 0:00:03]} e4 {[%emt 0:
00:02]} 30. fxe4 {[%emt 0:00:01]} fxe4 {[%emt 0:00:01]} 31. Ke1 {[%emt 0:00:02]
} Rf7 {[%emt 0:00:04]} 32. Ne2 {[%emt 0:00:01]} g5 {[%emt 0:00:02]} 33. g4 {
[%emt 0:00:03]} h6 {[%emt 0:00:01]} 34. Ng3 {[%emt 0:00:01]} Bc7 {[%emt 0:00:
04]} 35. Nf5 {[%emt 0:00:02]} Bxh2 {[%emt 0:00:02]} 36. Nxh6 {[%emt 0:00:01]}
Bg3+ {[%emt 0:00:01]} 37. Kd1 {[%emt 0:00:07]} Rf1+ {[%emt 0:00:02]} 38. Ke2 {
[%emt 0:00:00]} Rf2+ {[%emt 0:00:01]} 39. Kd1 {[%emt 0:00:01]} Rf1+ {[%emt 0:
00:04]} 40. Ke2 {[%emt 0:00:00]} Rf2+ {[%emt 0:00:02]} 41. Kd1 {[%emt 0:00:02]}
1/2-1/2

[Event "FIDE Women World Blitz 2021"]
[Site "Warsaw"]
[Date "2021.12.29"]
[Round "4.11"]
[White "Kosteniuk, Alexandra"]
[Black "Lach, Aleksandra"]
[Result "1-0"]
[ECO "B27"]
[WhiteElo "2518"]
[BlackElo "2204"]
[Annotator "ChessBase"]
[PlyCount "128"]
[EventDate "2021.12.29"]
[EventType "swiss"]
[EventCountry "POL"]
[Tiebreak "Cut1 Buchholz"]
[SourceTitle "playchess.com"]
[Source "ChessBase"]
[SourceQuality "1"]
[TimeControl "180+2"]

1. e4 {[%emt 0:00:01]} c5 {[%emt 0:00:01]} 2. Nf3 {[%emt 0:00:01]} g6 {[%emt 0:
00:03]} 3. c3 {[%emt 0:00:01]} Bg7 {[%emt 0:00:03]} 4. d4 {[%emt 0:00:02]} cxd4
{[%emt 0:00:01]} 5. cxd4 d5 {[%emt 0:00:01]} 6. e5 {[%emt 0:00:05]} Bg4 {
[%emt 0:00:01]} 7. Nbd2 {[%emt 0:00:16]} e6 {[%emt 0:00:31]} 8. Qb3 {[%emt 0:
00:09]} Qc7 {[%emt 0:00:24]} 9. Ng1 {[%emt 0:00:09]} Bf5 {[%emt 0:00:20]} 10.
Bb5+ {[%emt 0:00:03]} Nd7 {[%emt 0:00:01]} 11. Ne2 {[%emt 0:00:07]} Ne7 {
[%emt 0:00:07]} 12. h3 {[%emt 0:00:18]} h5 {[%emt 0:00:18]} 13. O-O {[%emt 0:
00:20]} O-O {[%emt 0:00:02]} 14. Nc3 {[%emt 0:00:13]} a6 {[%emt 0:00:05]} 15.
Be2 {[%emt 0:00:14]} Nc6 {[%emt 0:00:07]} 16. Nf3 {[%emt 0:00:01]} Be4 {
[%emt 0:00:05]} 17. Be3 {[%emt 0:00:06]} Bxf3 18. Bxf3 {[%emt 0:00:02]} b5 {
[%emt 0:00:09]} 19. Qd1 {[%emt 0:00:10]} Ne7 {[%emt 0:00:22]} 20. Rc1 {[%emt 0:
00:05]} Qd8 {[%emt 0:00:02]} 21. Bg5 {[%emt 0:00:03]} f6 {[%emt 0:00:03]} 22.
exf6 {[%emt 0:00:02]} Bxf6 {[%emt 0:00:01]} 23. Qd2 {[%emt 0:00:07]} Kh7 {
[%emt 0:00:13]} 24. Ne2 {[%emt 0:00:14]} Ra7 {[%emt 0:00:08]} 25. Bxf6 {
[%emt 0:00:10]} Nxf6 {[%emt 0:00:04]} 26. Nf4 {[%emt 0:00:01]} Qd6 {[%emt 0:00:
06]} 27. Rfe1 {[%emt 0:00:02]} Ne4 {[%emt 0:00:01]} 28. Bxe4 {[%emt 0:00:01]}
Qxf4 {[%emt 0:00:04]} 29. Qxf4 {[%emt 0:00:03]} Rxf4 {[%emt 0:00:01]} 30. Bb1 {
[%emt 0:00:03]} Rf6 {[%emt 0:00:06]} 31. Re5 {[%emt 0:00:18]} Kg7 {[%emt 0:00:
02]} 32. g4 {[%emt 0:00:13]} hxg4 {[%emt 0:00:01]} 33. hxg4 {[%emt 0:00:00]}
Kf7 {[%emt 0:00:15]} 34. Kg2 {[%emt 0:00:02]} Rf4 {[%emt 0:00:05]} 35. Kg3 {
[%emt 0:00:00]} Rxd4 {[%emt 0:00:01]} 36. Rce1 {[%emt 0:00:01]} Rb4 {[%emt 0:
00:10]} 37. b3 {[%emt 0:00:00]} d4 {[%emt 0:00:04]} 38. Rxe6 {[%emt 0:00:02]}
a5 {[%emt 0:00:02]} 39. g5 {[%emt 0:00:13]} a4 {[%emt 0:00:02]} 40. Rf6+ {
[%emt 0:00:01]} Kg7 {[%emt 0:00:00]} 41. Bc2 {[%emt 0:00:03]} d3 {[%emt 0:00:
05]} 42. Bxd3 {[%emt 0:00:08]} axb3 {[%emt 0:00:01]} 43. axb3 {[%emt 0:00:01]}
Rxb3 {[%emt 0:00:00]} 44. Re3 {[%emt 0:00:01]} Rd7 {[%emt 0:00:06]} 45. Be4 {
[%emt 0:00:03]} Rxe3+ {[%emt 0:00:05]} 46. fxe3 b4 {[%emt 0:00:05]} 47. Rb6 {
[%emt 0:00:03]} Nc8 {[%emt 0:00:00]} 48. Rxb4 {[%emt 0:00:02]} Re7 49. Kf3 {
[%emt 0:00:03]} Nd6 50. Bd5 {[%emt 0:00:01]} Nf5 {[%emt 0:00:00]} 51. e4 {
[%emt 0:00:01]} Nd6 {[%emt 0:00:01]} 52. Rb6 {[%emt 0:00:02]} Nc8 {[%emt 0:00:
04]} 53. Rf6 {[%emt 0:00:02]} Ra7 {[%emt 0:00:03]} 54. Kf4 {[%emt 0:00:01]} Rc7
{[%emt 0:00:03]} 55. Ra6 {[%emt 0:00:08]} Ne7 {[%emt 0:00:00]} 56. Ke5 {
[%emt 0:00:01]} Nc8 {[%emt 0:00:02]} 57. Be6 {[%emt 0:00:02]} Ne7 {[%emt 0:00:
03]} 58. Kd6 {[%emt 0:00:01]} Rb7 {[%emt 0:00:00]} 59. Bd5 {[%emt 0:00:04]}
Nxd5 {[%emt 0:00:04]} 60. exd5 Kf7 {[%emt 0:00:01]} 61. Kc6 {[%emt 0:00:04]}
Rb1 {[%emt 0:00:01]} 62. Ra7+ {[%emt 0:00:01]} Ke8 {[%emt 0:00:02]} 63. Rg7 {
[%emt 0:00:01]} Rb2 {[%emt 0:00:03]} 64. Rxg6 {[%emt 0:00:02]} Rb6+ {[%emt 0:
00:01]} 1-0

[Event "FIDE Women World Blitz 2021"]
[Site "Warsaw"]
[Date "2021.12.29"]
[Round "4.11"]
[White "Budkiewicz, Magdalena"]
[Black "Utiatskaja, Irina"]
[Result "1-0"]
[ECO "B40"]
[WhiteElo "1624"]
[BlackElo "2184"]
[Annotator "NA"]
[PlyCount "109"]
[EventDate "2021.12.29"]
[EventType "swiss"]
[EventCountry "POL"]
[Tiebreak "Cut1 Buchholz"]
[SourceTitle "playchess.com"]
[Source "ChessBase"]
[SourceQuality "1"]
[TimeControl "180+2"]

1. e4 {[%emt 0:00:01]} c5 {[%emt 0:00:00]} 2. Nf3 {[%emt 0:00:01]} e6 {[%emt 0:
00:01]} 3. d4 {[%emt 0:00:01]} cxd4 {[%emt 0:00:01]} 4. Nxd4 {[%emt 0:00:01]}
Bc5 {[%emt 0:00:06]} 5. Nb3 {[%emt 0:00:04]} Bb6 {[%emt 0:00:04]} 6. Bd3 {
[%emt 0:00:07]} Nc6 {[%emt 0:00:07]} 7. O-O {[%emt 0:00:04]} Nge7 {[%emt 0:00:
20]} 8. c4 {[%emt 0:00:12]} d6 {[%emt 0:00:00]} 9. Nc3 {[%emt 0:00:01]} a6 {
[%emt 0:00:00]} 10. Kh1 {[%emt 0:00:05]} Ng6 {[%emt 0:00:04]} 11. f4 {[%emt 0:
00:05]} Qc7 {[%emt 0:00:08]} 12. Qg4 {[%emt 0:00:17]} Bd7 {[%emt 0:00:22]} 13.
Bd2 {[%emt 0:00:16]} O-O-O {[%emt 0:00:07]} 14. Na4 {[%emt 0:00:13]} Ba7 {
[%emt 0:00:05]} 15. Nc3 {[%emt 0:00:08]} Kb8 {[%emt 0:00:01]} 16. Qe2 {[%emt 0:
00:12]} h5 {[%emt 0:00:14]} 17. Be3 {[%emt 0:00:04]} Bxe3 {[%emt 0:00:07]} 18.
Qxe3 {[%emt 0:00:02]} h4 {[%emt 0:00:02]} 19. h3 {[%emt 0:00:06]} e5 {[%emt 0:
00:02]} 20. f5 {[%emt 0:00:14]} Nf4 {[%emt 0:00:01]} 21. Nd5 {[%emt 0:00:07]}
Nxd5 {[%emt 0:00:09]} 22. cxd5 {[%emt 0:00:01]} Nd4 {[%emt 0:00:15]} 23. Nxd4 {
[%emt 0:00:04]} exd4 {[%emt 0:00:02]} 24. Qxd4 {[%emt 0:00:02]} f6 {[%emt 0:00:
06]} 25. Rac1 {[%emt 0:00:03]} Qa5 {[%emt 0:00:01]} 26. a3 {[%emt 0:00:01]} Rc8
{[%emt 0:00:05]} 27. Qf2 {[%emt 0:00:14]} Qa4 {[%emt 0:00:08]} 28. Qf4 {
[%emt 0:00:07]} Qa5 {[%emt 0:00:03]} 29. Qxd6+ {[%emt 0:00:03]} Ka7 {[%emt 0:
00:03]} 30. Qxd7 {[%emt 0:00:06]} Rxc1 {[%emt 0:00:04]} 31. Rxc1 {[%emt 0:00:
01]} Qd2 {[%emt 0:00:02]} 32. Rc3 {[%emt 0:00:21]} Qe1+ {[%emt 0:00:01]} 33.
Kh2 {[%emt 0:00:01]} Qg3+ {[%emt 0:00:06]} 34. Kg1 {[%emt 0:00:01]} Qe3+ {
[%emt 0:00:02]} 35. Kh1 {[%emt 0:00:07]} Qe1+ {[%emt 0:00:01]} 36. Kh2 {
[%emt 0:00:01]} Qg3+ {[%emt 0:00:01]} 37. Kg1 {[%emt 0:00:03]} Qe3+ {[%emt 0:
00:01]} 38. Kf1 {[%emt 0:00:02]} Rh5 {[%emt 0:00:11]} 39. Qc7 {[%emt 0:00:19]}
Qd2 {[%emt 0:00:21]} 40. Qc5+ {[%emt 0:00:02]} Kb8 {[%emt 0:00:01]} 41. Qf2 {
[%emt 0:00:05]} Qd1+ {[%emt 0:00:07]} 42. Qe1 {[%emt 0:00:00]} Qa4 {[%emt 0:00:
05]} 43. Qe2 {[%emt 0:00:06]} Rg5 {[%emt 0:00:03]} 44. Qf3 {[%emt 0:00:16]} Rg3
{[%emt 0:00:14]} 45. Qf4+ {[%emt 0:00:00]} Ka7 {[%emt 0:00:01]} 46. Be2 {
[%emt 0:00:00]} Qd4 {[%emt 0:00:04]} 47. Rxg3 {[%emt 0:00:00]} hxg3 {[%emt 0:
00:03]} 48. Qxg3 {[%emt 0:00:00]} Qxb2 {[%emt 0:00:01]} 49. Qf2+ {[%emt 0:00:
00]} Kb8 {[%emt 0:00:01]} 50. Qe3 {[%emt 0:00:07]} Qa1+ {[%emt 0:00:05]} 51.
Kf2 {[%emt 0:00:01]} Ka8 {[%emt 0:00:03]} 52. d6 {[%emt 0:00:02]} Qe5 {[%emt 0:
00:02]} 53. Qd3 {[%emt 0:00:02]} Qf4+ {[%emt 0:00:02]} 54. Bf3 {[%emt 0:00:01]}
Qh4+ {[%emt 0:00:02]} 55. Ke2 {[%emt 0:00:02]} 1-0

[Event "FIDE Women World Blitz 2021"]
[Site "Warsaw"]
[Date "2021.12.29"]
[Round "4.12"]
[White "Paehtz, Elisabeth"]
[Black "Garcia Martin, Marta"]
[Result "1-0"]
[ECO "D02"]
[WhiteElo "2485"]
[BlackElo "2194"]
[Annotator "ChessBase"]
[PlyCount "123"]
[EventDate "2021.12.29"]
[EventType "swiss"]
[EventCountry "POL"]
[Tiebreak "Cut1 Buchholz"]
[SourceTitle "playchess.com"]
[Source "ChessBase"]
[SourceQuality "1"]
[TimeControl "180+2"]

1. d4 {[%emt 0:00:01]} d5 {[%emt 0:00:00]} 2. Bf4 {[%emt 0:00:01]} Nf6 {
[%emt 0:00:02]} 3. e3 {[%emt 0:00:01]} e6 {[%emt 0:00:01]} 4. Nf3 {[%emt 0:00:
02]} Bd6 {[%emt 0:00:03]} 5. Nbd2 {[%emt 0:00:02]} O-O {[%emt 0:00:15]} 6. c3 {
[%emt 0:00:02]} b6 {[%emt 0:00:01]} 7. Bd3 {[%emt 0:00:04]} Ba6 {[%emt 0:00:03]
} 8. Bxa6 {[%emt 0:00:02]} Nxa6 {[%emt 0:00:01]} 9. O-O {[%emt 0:00:03]} c5 {
[%emt 0:00:02]} 10. Ne5 {[%emt 0:00:06]} Nb8 {[%emt 0:00:15]} 11. Bg5 {[%emt 0:
00:03]} Be7 {[%emt 0:00:08]} 12. Bxf6 {[%emt 0:00:06]} Bxf6 {[%emt 0:00:03]}
13. f4 {[%emt 0:00:01]} Be7 {[%emt 0:00:02]} 14. Qg4 {[%emt 0:00:08]} Qd6 {
[%emt 0:00:28]} 15. Rf3 {[%emt 0:00:06]} f5 {[%emt 0:00:16]} 16. Qh5 {[%emt 0:
00:10]} Nd7 {[%emt 0:00:30]} 17. Rg3 {[%emt 0:00:05]} Nf6 {[%emt 0:00:34]} 18.
Qh6 {[%emt 0:00:07]} Ng4 {[%emt 0:00:11]} 19. Qh3 {[%emt 0:00:04]} Nxe5 {
[%emt 0:00:05]} 20. fxe5 {[%emt 0:00:07]} Qd8 {[%emt 0:00:10]} 21. Qh6 {
[%emt 0:00:07]} g6 {[%emt 0:00:07]} 22. Nf3 {[%emt 0:00:21]} Rf7 {[%emt 0:00:
01]} 23. Qf4 {[%emt 0:00:02]} Rg7 {[%emt 0:00:08]} 24. h4 {[%emt 0:00:02]} Rc8
{[%emt 0:00:04]} 25. Qh6 {[%emt 0:00:17]} Rc6 {[%emt 0:00:12]} 26. Rf1 {
[%emt 0:00:06]} b5 {[%emt 0:00:03]} 27. Qf4 {[%emt 0:00:14]} c4 {[%emt 0:00:06]
} 28. a3 {[%emt 0:00:17]} a5 {[%emt 0:00:01]} 29. Ra1 {[%emt 0:00:06]} Rb6 30.
Qh6 {[%emt 0:00:14]} Kf7 {[%emt 0:00:05]} 31. Rf1 {[%emt 0:00:07]} Kg8 {
[%emt 0:00:01]} 32. Qf4 {[%emt 0:00:09]} b4 {[%emt 0:00:02]} 33. axb4 {[%emt 0:
00:01]} axb4 {[%emt 0:00:00]} 34. Rh3 {[%emt 0:00:28]} Ra6 {[%emt 0:00:04]} 35.
cxb4 {[%emt 0:00:07]} Ra2 {[%emt 0:00:02]} 36. Rf2 {[%emt 0:00:02]} Qb6 {
[%emt 0:00:02]} 37. Rg3 {[%emt 0:00:05]} Qxb4 {[%emt 0:00:02]} 38. h5 {[%emt 0:
00:01]} g5 {[%emt 0:00:05]} 39. Nxg5 {[%emt 0:00:02]} Bxg5 {[%emt 0:00:02]} 40.
Rxg5 {[%emt 0:00:02]} Ra1+ {[%emt 0:00:02]} 41. Kh2 {[%emt 0:00:03]} Qe1 {
[%emt 0:00:02]} 42. Rxg7+ Kxg7 {[%emt 0:00:01]} 43. Qg5+ {[%emt 0:00:05]} Kf8 {
[%emt 0:00:01]} 44. Qf6+ {[%emt 0:00:05]} Ke8 {[%emt 0:00:01]} 45. Qxe6+ {
[%emt 0:00:01]} Kd8 {[%emt 0:00:01]} 46. Qxd5+ {[%emt 0:00:01]} Ke8 {[%emt 0:
00:01]} 47. Qc6+ {[%emt 0:00:01]} Kd8 {[%emt 0:00:02]} 48. Qd6+ {[%emt 0:00:03]
} Kc8 {[%emt 0:00:01]} 49. Qe6+ {[%emt 0:00:01]} Kc7 {[%emt 0:00:01]} 50. Qf7+
{[%emt 0:00:02]} Kb6 {[%emt 0:00:01]} 51. Qxf5 {[%emt 0:00:01]} Qxe3 {[%emt 0:
00:03]} 52. d5 {[%emt 0:00:03]} Qd4 {[%emt 0:00:04]} 53. Qf4 {[%emt 0:00:03]}
Qxd5 {[%emt 0:00:03]} 54. Qe3+ {[%emt 0:00:04]} Kb5 {[%emt 0:00:02]} 55. Rd2 {
[%emt 0:00:03]} Qc5 {[%emt 0:00:03]} 56. Qxc5+ {[%emt 0:00:01]} Kxc5 {[%emt 0:
00:01]} 57. Re2 {[%emt 0:00:01]} Ra7 {[%emt 0:00:04]} 58. e6 {[%emt 0:00:02]}
Re7 {[%emt 0:00:01]} 59. g4 {[%emt 0:00:01]} h6 {[%emt 0:00:01]} 60. Kg3 {
[%emt 0:00:01]} Kd4 {[%emt 0:00:03]} 61. Kf4 {[%emt 0:00:01]} Kd3 {[%emt 0:00:
02]} 62. Re4 {[%emt 0:00:02]} 1-0